bitfinex/quotes_BTCUSD_20250527
["timestamp","ask_amount","ask_price","bid_price","bid_amount"]
[1748333157889,0.02737591,109580.0,109570.0,2.67653152]
[1748333157890,0.02737582,109580.0,109570.0,2.67653152]
[1748333158102,0.02737582,109580.0,109570.0,1.65775552]
[1748333158325,0.0365014,109580.0,109570.0,1.59126552]
[1748333158995,0.20076638,109580.0,109570.0,0.5912222]
[1748333159202,0.20076638,109580.0,109570.0,1.18347708]
[1748333159425,0.20076638,109580.0,109570.0,1.38426187]
[1748333159631,0.02737599,109580.0,109570.0,1.40251412]
[1748333159908,0.01825041,109580.0,109570.0,1.40251412]
[1748333160109,0.02737599,109580.0,109570.0,1.40251412]
[1748333160324,0.2190167,109580.0,109570.0,1.39338812]
[1748333160474,0.20989162,109580.0,109570.0,1.38426187]
[1748333160751,0.20076629,109580.0,109570.0,1.39338828]
[1748333161670,0.01825124,109580.0,109570.0,1.41164053]
[1748333161857,0.01825091,109580.0,109570.0,1.41164053]
[1748333162194,0.01829091,109580.0,109570.0,1.41164053]
[1748333162702,0.20080596,109580.0,109570.0,0.46957664]
[1748333162911,0.20080596,109580.0,109570.0,1.32474379]
[1748333163131,0.20993162,109580.0,109570.0,1.34299687]
[1748333163559,0.20080629,109580.0,109570.0,1.3521232]
[1748333163954,0.19168063,109580.0,109570.0,1.36124945]
[1748333164159,0.00916525,109580.0,109570.0,1.37037545]
[1748333164364,0.02741565,109580.0,109570.0,1.37037545]
[1748333164567,0.01829024,109580.0,109570.0,1.37037545]
[1748333164771,0.01829041,109580.0,109570.0,1.37037545]
[1748333165423,0.00916508,109580.0,109570.0,1.37037545]
[1748333165625,4e-05,109580.0,109570.0,1.37037545]
[1748333165853,0.00104,109590.0,109580.0,0.54989128]
[1748333166035,0.01928891,109590.0,109580.0,6.19478184]
[1748333166235,0.01928891,109590.0,109580.0,6.15664884]
[1748333166412,0.01928891,109590.0,109580.0,6.32887772]
[1748333166629,0.01928891,109590.0,109580.0,6.35960905]
[1748333167844,0.01928891,109590.0,109580.0,6.04095417]
[1748333168019,0.02841366,109590.0,109580.0,4.55594025]
[1748333168233,0.00104,109590.0,109580.0,4.55594025]
[1748333168448,0.00912358,109600.0,109590.0,0.58207214]
[1748333168647,0.02737141,109600.0,109590.0,3.17481958]
[1748333168843,0.03810639,109610.0,109600.0,0.57292966]
[1748333169090,0.03810639,109610.0,109600.0,3.1436941]
[1748333169091,0.22057224,109610.0,109600.0,3.1436941]
[1748333169296,0.22057224,109610.0,109600.0,2.8722431]
[1748333169467,0.22057224,109610.0,109600.0,2.6436951]
[1748333169671,0.23762391,109610.0,109600.0,2.6436951]
[1748333169850,0.22888577,109610.0,109600.0,2.6436951]
[1748333171915,0.22604002,109610.0,109600.0,0.34004966]
[1748333172336,0.22704002,109610.0,109600.0,0.34004966]
[1748333173423,0.22804002,109610.0,109600.0,0.34004966]
[1748333175603,0.22804002,109610.0,109600.0,0.65870454]
[1748333175853,0.22804002,109610.0,109600.0,0.34004966]
[1748333177081,0.25878626,109610.0,109600.0,0.34004966]
[1748333177483,0.28972711,109610.0,109600.0,0.34004966]
[1748333178125,0.28972711,109610.0,109600.0,4.966e-05]
[1748333178556,0.26771901,109610.0,109600.0,4.966e-05]
[1748333179379,0.35726457,109610.0,109600.0,4.966e-05]
[1748333180120,0.34852643,109610.0,109600.0,4.966e-05]
[1748333184391,0.37410536,109610.0,109600.0,4.966e-05]
[1748333185616,0.3937067,109610.0,109600.0,4.966e-05]
[1748333186380,0.40560929,109610.0,109600.0,4.966e-05]
[1748333186964,0.43645354,109610.0,109600.0,4.966e-05]
[1748333187232,0.23734652,109600.0,109590.0,0.00311638]
[1748333187406,0.32689208,109600.0,109590.0,0.00316608]
[1748333187568,0.34394375,109600.0,109590.0,0.00316608]
[1748333187977,0.35268189,109600.0,109590.0,0.00316608]
[1748333188430,0.35268189,109600.0,109590.0,0.00416608]
[1748333189846,0.31274375,109600.0,109590.0,0.00416608]
[1748333190044,0.20865734,109600.0,109590.0,0.35680726]
[1748333190262,0.20965734,109600.0,109590.0,0.63040726]
[1748333190460,0.21065734,109600.0,109590.0,0.27676608]
[1748333190599,0.21065734,109600.0,109590.0,0.63040726]
[1748333191967,0.21065734,109600.0,109590.0,0.27676608]
[1748333193678,0.24235734,109600.0,109590.0,0.34316608]
[1748333194457,0.22725734,109600.0,109590.0,0.34316608]
[1748333195772,0.22725734,109600.0,109590.0,0.00316608]
[1748333195980,0.21065734,109600.0,109590.0,0.00316608]
[1748333198791,0.21069734,109600.0,109590.0,0.00316608]
[1748333199424,0.20157342,109600.0,109590.0,0.01162676]
[1748333199770,0.20180557,109600.0,109590.0,0.01162676]
[1748333200201,0.20180557,109600.0,109590.0,0.36252001]
[1748333200638,0.18994988,109600.0,109590.0,0.36252001]
[1748333200816,0.18994988,109600.0,109590.0,0.04422676]
[1748333201306,0.18994988,109600.0,109590.0,0.57172476]
[1748333201508,0.18994988,109600.0,109590.0,0.81564776]
[1748333201926,0.18994988,109600.0,109590.0,1.13394101]
[1748333202383,0.03733908,109600.0,109590.0,1.32556416]
[1748333202603,0.0385345,109600.0,109590.0,1.71608314]
[1748333202816,0.00204,109600.0,109590.0,1.71608314]
[1748333203043,0.01116333,109600.0,109590.0,1.71608314]
[1748333203278,0.0091235,109600.0,109590.0,1.71398314]
[1748333203492,0.00912333,109600.0,109590.0,1.38656464]
[1748333203731,0.01824691,109600.0,109590.0,1.70685914]
[1748333204160,0.01824683,109600.0,109590.0,1.71798347]
[1748333204370,0.04335711,109610.0,109600.0,0.582553]
[1748333204551,0.04335686,109610.0,109600.0,4.94483981]
[1748333204772,0.05247961,109610.0,109600.0,4.84674431]
[1748333204996,0.06160261,109610.0,109600.0,3.88590949]
[1748333205416,0.06160261,109610.0,109600.0,3.38180149]
[1748333205633,0.06160261,109610.0,109600.0,3.33721249]
[1748333205880,0.05247961,109610.0,109600.0,3.25613849]
[1748333206094,0.07072569,109610.0,109600.0,3.25613849]
[1748333206289,0.07072569,109610.0,109600.0,3.23746149]
[1748333206465,0.24406821,109610.0,109600.0,2.43516124]
[1748333206677,0.06160311,109610.0,109600.0,2.44130066]
[1748333206884,0.07072628,109610.0,109600.0,2.73310774]
[1748333207062,0.07072628,109610.0,109600.0,2.72398424]
[1748333207283,0.26231463,109610.0,109600.0,2.72398424]
[1748333207728,0.0111225,109610.0,109600.0,2.72398424]
[1748333207962,0.002,109610.0,109600.0,2.73310774]
[1748333208419,0.01112258,109610.0,109600.0,2.73310774]
[1748333209020,0.02024533,109610.0,109600.0,2.73310774]
[1748333210342,0.02936825,109610.0,109600.0,2.73310774]
[1748333210548,0.04761467,109610.0,109600.0,2.76047474]
[1748333211012,0.21183444,109610.0,109600.0,2.13212699]
[1748333211229,0.21183444,109610.0,109600.0,2.73310407]
[1748333211467,0.21183444,109610.0,109600.0,2.73210407]
[1748333211681,0.21183444,109610.0,109600.0,2.73410407]
[1748333211854,0.20271152,109610.0,109600.0,2.25981449]
[1748333212064,0.20271152,109610.0,109600.0,2.99543449]
[1748333212498,0.20271152,109610.0,109600.0,2.72387449]
[1748333212731,0.20271152,109610.0,109600.0,2.99743449]
[1748333213383,0.20271152,109610.0,109600.0,1.39550693]
[1748333213619,0.20271152,109610.0,109600.0,1.64169993]
[1748333213835,0.20271152,109610.0,109600.0,1.65699993]
[1748333214323,0.20271152,109610.0,109600.0,1.67279993]
[1748333215663,0.20271152,109610.0,109600.0,1.65699993]
[1748333215897,0.21881152,109610.0,109600.0,0.01246068]
[1748333216086,0.21881152,109610.0,109600.0,0.35246068]
[1748333217468,0.20271152,109610.0,109600.0,1.37352093]
[1748333217672,0.20271152,109610.0,109600.0,0.87883893]
[1748333218126,0.20271152,109610.0,109600.0,0.81144493]
[1748333218854,0.20271152,109610.0,109600.0,0.76671168]
[1748333219057,0.20271152,109610.0,109600.0,1.08500493]
[1748333219889,0.20271152,109610.0,109600.0,0.95831735]
[1748333220095,0.20271152,109610.0,109600.0,1.2923106]
[1748333220301,0.20271152,109610.0,109600.0,0.96489343]
[1748333220521,0.20271152,109610.0,109600.0,1.29231068]
[1748333220734,0.20271152,109610.0,109600.0,1.3014346]
[1748333220951,0.20271152,109610.0,109600.0,1.31968201]
[1748333221171,0.20271152,109610.0,109600.0,1.31055843]
[1748333221399,0.19358835,109610.0,109600.0,1.31055843]
[1748333221694,0.19358835,109610.0,109600.0,1.32227225]
[1748333221907,0.21183427,109610.0,109600.0,1.34669592]
[1748333222315,0.02024525,109610.0,109600.0,1.43624098]
[1748333222734,0.02936817,109610.0,109600.0,1.43624098]
[1748333223166,0.0111225,109610.0,109600.0,1.43624098]
[1748333223370,0.02936809,109610.0,109600.0,1.11794773]
[1748333223599,0.02936809,109610.0,109600.0,1.43624098]
[1748333224053,0.02936809,109610.0,109600.0,1.46360898]
[1748333224404,0.21183319,109610.0,109600.0,1.23550856]
[1748333224627,0.2027111,109610.0,109600.0,1.38440631]
[1748333225068,0.2027111,109610.0,109600.0,1.39353023]
[1748333225287,0.2027111,109610.0,109600.0,1.19280056]
[1748333225514,0.2027111,109610.0,109600.0,1.36870639]
[1748333225945,0.19358818,109610.0,109600.0,1.36870639]
[1748333226160,0.1844651,109610.0,109600.0,1.17710056]
[1748333226381,0.1844651,109610.0,109600.0,1.36870639]
[1748333226602,0.1844651,109610.0,109600.0,1.37783039]
[1748333226836,0.1844651,109610.0,109600.0,1.35958231]
[1748333227067,0.1844651,109610.0,109600.0,1.37783039]
[1748333227756,0.1844651,109610.0,109600.0,1.17710056]
[1748333227981,0.1844651,109610.0,109600.0,1.36870639]
[1748333228467,0.1844651,109610.0,109600.0,1.37783031]
[1748333229369,0.1844651,109610.0,109600.0,1.39333031]
[1748333229758,0.20271135,109610.0,109600.0,1.42737772]
[1748333229978,0.20271135,109610.0,109600.0,1.80692027]
[1748333229979,0.22095743,109610.0,109600.0,1.80692027]
[1748333230192,0.2118346,109610.0,109600.0,1.80692027]
[1748333230573,0.22890266,109610.0,109600.0,1.80692027]
[1748333230805,0.21977958,109610.0,109600.0,1.44431675]
[1748333231033,0.00912192,109620.0,109610.0,0.20981906]
[1748333231311,0.01073814,109630.0,109620.0,0.54981488]
[1748333231513,0.01073814,109630.0,109620.0,2.66029005]
[1748333231760,0.01073814,109630.0,109620.0,2.68765405]
[1748333231983,0.01073814,109630.0,109620.0,2.96117405]
[1748333232245,0.01073814,109630.0,109620.0,2.96963473]
[1748333232458,0.01112084,109630.0,109620.0,2.96963473]
[1748333232720,0.002,109630.0,109620.0,2.96963473]
[1748333232932,0.003,109630.0,109620.0,2.96963473]
[1748333233171,0.002,109630.0,109620.0,2.61615504]
[1748333233389,0.002,109630.0,109620.0,2.96117405]
[1748333234051,0.002,109630.0,109620.0,2.92562232]
[1748333236273,0.002,109630.0,109620.0,2.60769436]
[1748333236484,0.08329134,109670.0,109660.0,0.20061983]
[1748333236692,0.10152711,109670.0,109660.0,1.7553501]
[1748333236916,0.08329134,109670.0,109660.0,2.16282362]
[1748333237185,0.09240918,109670.0,109660.0,2.50282362]
[1748333237394,0.10152719,109670.0,109660.0,2.50282362]
[1748333237638,0.09240918,109670.0,109660.0,2.50282362]
[1748333237858,0.09240918,109670.0,109660.0,2.50287332]
[1748333238111,0.10152727,109670.0,109660.0,2.50287332]
[1748333238336,0.20971888,109670.0,109660.0,2.49375481]
[1748333238602,0.2164012,109670.0,109660.0,0.65797766]
[1748333238822,0.30627486,109670.0,109660.0,0.34918553]
[1748333239089,0.30627486,109670.0,109660.0,0.62266553]
[1748333239327,0.30627486,109670.0,109660.0,0.34918553]
[1748333240218,0.41136127,109670.0,109660.0,4.97e-05]
[1748333240441,0.41236127,109670.0,109660.0,4.97e-05]
[1748333241513,0.33818761,109670.0,109660.0,4.97e-05]
[1748333243537,0.25109134,109670.0,109660.0,4.97e-05]
[1748333246042,0.29444317,109670.0,109660.0,4.97e-05]
[1748333246390,0.25109134,109670.0,109660.0,4.97e-05]
[1748333247819,0.35517775,109670.0,109660.0,4.97e-05]
[1748333248660,0.62861775,109670.0,109660.0,4.97e-05]
[1748333248872,0.72827868,109670.0,109660.0,4.97e-05]
[1748333249096,0.70279141,109670.0,109660.0,4.97e-05]
[1748333249301,0.79231292,109670.0,109660.0,4.97e-05]
[1748333249546,0.79131292,109670.0,109660.0,4.97e-05]
[1748333249749,0.80031292,109670.0,109660.0,4.97e-05]
[1748333249952,1.34092369,109670.0,109660.0,4.97e-05]
[1748333250149,1.34292369,109670.0,109660.0,4.97e-05]
[1748333250387,0.22390082,109660.0,109650.0,0.00257625]
[1748333250585,0.40296789,109660.0,109650.0,0.00262596]
[1748333251325,0.44449888,109660.0,109650.0,0.00262596]
[1748333251748,0.47199763,109660.0,109650.0,0.00262596]
[1748333252451,0.53697771,109660.0,109650.0,0.00262596]
[1748333253125,0.2321744,109630.0,109620.0,0.002]
[1748333253348,0.2321744,109630.0,109620.0,0.00204971]
[1748333253571,0.24916454,109630.0,109620.0,0.00204971]
[1748333254227,0.35325095,109630.0,109620.0,0.00204971]
[1748333254440,0.35325095,109630.0,109620.0,0.00404971]
[1748333254673,0.40681904,109630.0,109620.0,0.00404971]
[1748333254875,0.35325095,109630.0,109620.0,0.00404971]
[1748333256198,0.03523273,109630.0,109620.0,0.33857767]
[1748333256420,0.02611056,109640.0,109630.0,0.24139583]
[1748333256647,0.02736118,109640.0,109630.0,1.91416795]
[1748333256875,0.20977627,109640.0,109630.0,1.91416795]
[1748333257076,0.0273611,109640.0,109630.0,1.93241012]
[1748333257261,0.03648177,109640.0,109630.0,1.94641831]
[1748333257625,0.0273611,109640.0,109630.0,1.94641831]
[1748333257834,0.20977627,109640.0,109630.0,1.85017631]
[1748333258034,0.20977627,109640.0,109630.0,1.85117631]
[1748333258602,0.01824051,109640.0,109630.0,1.86029731]
[1748333258801,0.20977618,109640.0,109630.0,1.94072187]
[1748333259008,0.20977668,109640.0,109630.0,1.75151345]
[1748333259625,0.20065634,109640.0,109630.0,0.75240119]
[1748333259835,0.19153584,109640.0,109630.0,0.80570343]
[1748333260079,0.19153584,109640.0,109630.0,0.47705924]
[1748333260261,0.19153584,109640.0,109630.0,0.66861264]
[1748333260476,0.19153584,109640.0,109630.0,0.68685556]
[1748333260680,0.00912067,109640.0,109630.0,0.68685556]
[1748333260893,0.20065634,109640.0,109630.0,0.68685556]
[1748333261051,0.20065634,109640.0,109630.0,1.01390486]
[1748333261251,0.20065634,109640.0,109630.0,1.02302603]
[1748333261455,0.20065634,109640.0,109630.0,1.01390486]
[1748333261664,0.20065634,109640.0,109630.0,1.00478352]
[1748333261860,0.20065634,109640.0,109630.0,1.02784557]
[1748333262066,0.20065634,109640.0,109630.0,1.03696682]
[1748333262611,0.19153584,109640.0,109630.0,1.02784557]
[1748333263058,0.18241517,109640.0,109630.0,0.49099995]
[1748333263274,0.18241517,109640.0,109630.0,0.7949872]
[1748333263478,0.18241517,109640.0,109630.0,0.47705924]
[1748333263810,0.18241517,109640.0,109630.0,0.45645724]
[1748333264024,0.18241517,109640.0,109630.0,0.7743852]
[1748333264643,0.18241517,109640.0,109630.0,0.72799224]
[1748333265198,0.18241517,109640.0,109630.0,0.45451224]
[1748333265415,0.19891517,109640.0,109630.0,0.72799224]
[1748333266044,0.21593768,109640.0,109630.0,0.72799224]
[1748333267087,0.21593768,109640.0,109630.0,0.45451224]
[1748333267349,0.21593768,109640.0,109630.0,0.34943424]
[1748333267350,0.23193768,109640.0,109630.0,0.34943424]
[1748333267915,0.33602409,109640.0,109630.0,0.34943424]
[1748333268696,0.33602409,109640.0,109630.0,0.00943424]
[1748333275470,0.34602409,109640.0,109630.0,0.00943424]
[1748333275621,0.3615715,109640.0,109630.0,0.001]
[1748333275835,0.33602409,109640.0,109630.0,0.001]
[1748333276054,0.36562543,109640.0,109630.0,0.001]
[1748333276253,0.19155323,109630.0,109620.0,0.00204971]
[1748333276457,0.32653964,109630.0,109620.0,0.01050258]
[1748333276743,0.34356215,109630.0,109620.0,0.01050258]
[1748333277172,0.32776215,109630.0,109620.0,0.01050258]
[1748333277576,0.31266215,109630.0,109620.0,0.01050258]
[1748333278900,0.31266215,109630.0,109620.0,0.01150258]
[1748333279193,0.34536215,109630.0,109620.0,0.01150258]
[1748333280682,0.34636215,109630.0,109620.0,0.01050258]
[1748333281514,0.31366215,109630.0,109620.0,0.01050258]
[1748333282014,0.31466215,109630.0,109620.0,0.36398112]
[1748333282873,0.31466215,109630.0,109620.0,0.01050258]
[1748333283119,0.31466215,109630.0,109620.0,0.36398112]
[1748333283505,0.38214988,109630.0,109620.0,0.36398112]
[1748333283863,0.33086215,109630.0,109620.0,0.36398112]
[1748333285099,0.34716215,109630.0,109620.0,0.36398112]
[1748333285311,0.34716215,109630.0,109620.0,0.35050258]
[1748333286563,0.34716215,109630.0,109620.0,0.34204971]
[1748333287242,0.03726527,109630.0,109620.0,1.7195587]
[1748333287449,0.22881867,109630.0,109620.0,1.72868095]
[1748333287655,0.21969733,109630.0,109620.0,1.7195587]
[1748333287886,0.20267482,109630.0,109620.0,2.21088095]
[1748333288064,0.18443181,109630.0,109620.0,1.98385456]
[1748333288274,0.18443181,109630.0,109620.0,1.93733677]
[1748333288559,0.002,109630.0,109620.0,2.1562739]
[1748333288774,0.011121,109630.0,109620.0,2.24581946]
[1748333289000,0.01924225,109630.0,109620.0,2.24581946]
[1748333289223,0.009121,109630.0,109620.0,2.24581946]
[1748333289411,0.01824217,109630.0,109620.0,2.24581946]
[1748333289646,0.00912084,109630.0,109620.0,2.23669646]
[1748333289863,0.01824075,109640.0,109630.0,0.24029556]
[1748333290072,0.02736134,109640.0,109630.0,2.22165697]
[1748333290811,0.02736134,109640.0,109630.0,2.23010518]
[1748333291032,0.03648201,109640.0,109630.0,2.23010518]
[1748333291233,0.01824075,109640.0,109630.0,2.23010518]
[1748333291440,0.03648127,109640.0,109630.0,2.23010518]
[1748333291682,0.04560202,109640.0,109630.0,2.22165697]
[1748333291951,0.20977693,109640.0,109630.0,1.94762797]
[1748333292218,0.02024059,109640.0,109630.0,1.95674897]
[1748333292473,0.02936126,109640.0,109630.0,1.63872629]
[1748333292695,0.21177643,109640.0,109630.0,1.95674914]
[1748333292917,0.002,109640.0,109630.0,2.31499123]
[1748333293165,0.02615712,109650.0,109640.0,0.58097643]
[1748333293376,0.20973936,109660.0,109650.0,0.5637183]
[1748333293581,0.20973936,109660.0,109650.0,2.07999715]
[1748333293793,0.20062085,109660.0,109650.0,2.07999731]
[1748333294002,0.20062085,109660.0,109650.0,2.00747831]
[1748333294441,0.19150209,109660.0,109650.0,1.82507977]
[1748333294657,0.18238317,109660.0,109650.0,1.497937]
[1748333294890,0.18238317,109660.0,109650.0,1.81595985]
[1748333295106,0.18238317,109660.0,109650.0,1.497937]
[1748333295310,0.18238317,109660.0,109650.0,1.80025985]
[1748333295732,0.18238317,109660.0,109650.0,1.80425985]
[1748333296294,0.18238317,109660.0,109650.0,1.80131186]
[1748333296514,0.18238317,109660.0,109650.0,1.48328901]
[1748333296957,0.18238317,109660.0,109650.0,1.81671186]
[1748333297156,0.18238317,109660.0,109650.0,1.9991104]
[1748333297364,0.18238317,109660.0,109650.0,2.00823024]
[1748333297729,0.18238317,109660.0,109650.0,1.69020739]
[1748333297911,0.18238317,109660.0,109650.0,2.00823024]
[1748333298368,0.18238317,109660.0,109650.0,2.0098801]
[1748333298571,0.18238317,109660.0,109650.0,2.01899986]
[1748333298811,0.18236527,109670.0,109660.0,0.20061966]
[1748333299025,0.20971964,109670.0,109660.0,1.33443751]
[1748333299248,0.20971964,109670.0,109660.0,1.23468875]
[1748333299482,0.20060171,109670.0,109660.0,0.99681994]
[1748333299726,0.19148353,109670.0,109660.0,0.98918622]
[1748333299946,0.19148353,109670.0,109660.0,0.17534637]
[1748333300183,0.19148353,109670.0,109660.0,0.44983608]
[1748333300429,0.19148353,109670.0,109660.0,0.27597508]
[1748333300651,0.19148353,109670.0,109660.0,0.42646208]
[1748333301112,0.19148353,109670.0,109660.0,0.74448493]
[1748333301494,0.19148353,109670.0,109660.0,0.46074493]
[1748333301688,0.19148353,109670.0,109660.0,0.73418493]
[1748333302678,0.19148353,109670.0,109660.0,0.42695308]
[1748333303715,0.19148353,109670.0,109660.0,0.74497593]
[1748333305487,0.19148353,109670.0,109660.0,0.74411793]
[1748333306207,0.19148353,109670.0,109660.0,0.42609508]
[1748333306424,0.19148353,109670.0,109660.0,0.59499793]
[1748333306646,0.22198353,109670.0,109660.0,0.00353508]
[1748333307064,0.23652438,109670.0,109660.0,0.00353508]
[1748333307879,0.23652438,109670.0,109660.0,0.00253508]
[1748333308109,0.23652438,109670.0,109660.0,0.35478073]
[1748333308314,0.20702438,109670.0,109660.0,0.00153508]
[1748333308516,0.19248353,109670.0,109660.0,0.96287671]
[1748333308737,0.19248353,109670.0,109660.0,0.36194271]
[1748333308943,0.19248353,109670.0,109660.0,0.71518836]
[1748333309149,0.23882438,109670.0,109660.0,0.35329536]
[1748333309352,0.23882438,109670.0,109660.0,0.47415436]
[1748333309573,0.23882438,109670.0,109660.0,1.04045436]
[1748333310206,0.23882438,109670.0,109660.0,0.68720871]
[1748333310425,0.23882438,109670.0,109660.0,1.04045436]
[1748333311833,1.53283917,109670.0,109660.0,4.971e-05]
[1748333312071,1.63531175,109670.0,109660.0,4.971e-05]
[1748333312318,0.24734167,109660.0,109650.0,0.0014854]
[1748333312560,0.24701525,109630.0,109620.0,0.002]
[1748333312785,0.60996081,109630.0,109620.0,0.00204972]
[1748333313226,0.62694532,109630.0,109620.0,0.00204972]
[1748333314051,0.61158532,109630.0,109620.0,0.34204972]
[1748333314188,0.21765891,109630.0,109620.0,0.34204972]
[1748333314387,0.2006744,109630.0,109620.0,0.34204972]
[1748333314788,0.2006744,109630.0,109620.0,0.34404972]
[1748333316050,0.2006744,109630.0,109620.0,0.34704972]
[1748333316930,0.2006744,109630.0,109620.0,0.34404972]
[1748333317131,0.2006744,109630.0,109620.0,0.34204972]
[1748333317655,0.2006744,109630.0,109620.0,0.34304972]
[1748333317970,0.2006744,109630.0,109620.0,0.34404972]
[1748333318430,0.2006744,109630.0,109620.0,0.92303372]
[1748333318616,0.19941437,109640.0,109630.0,0.01824293]
[1748333318617,0.20853504,109640.0,109630.0,0.01824293]
[1748333318878,0.20065626,109640.0,109630.0,1.31146371]
[1748333319092,0.20065626,109640.0,109630.0,0.160155]
[1748333319331,0.19153584,109640.0,109630.0,0.160155]
[1748333319551,0.19153584,109640.0,109630.0,0.0152]
[1748333319781,0.21891733,109630.0,109620.0,0.98277988]
[1748333319961,0.2006749,109630.0,109620.0,0.56561572]
[1748333320210,0.2006749,109630.0,109620.0,0.74806417]
[1748333320442,0.2006749,109630.0,109620.0,0.75518642]
[1748333321074,0.2006749,109630.0,109620.0,0.77343043]
[1748333321282,0.01824309,109630.0,109620.0,0.77443043]
[1748333321518,0.01824309,109630.0,109620.0,1.10274384]
[1748333321944,0.01824309,109630.0,109620.0,0.78455227]
[1748333322380,0.01824309,109630.0,109620.0,1.10274384]
[1748333322887,0.01824309,109630.0,109620.0,1.08450008]
[1748333323095,0.2006749,109630.0,109620.0,1.08450008]
[1748333323840,0.2006749,109630.0,109620.0,0.76630851]
[1748333324046,0.2006749,109630.0,109620.0,1.08450008]
[1748333324797,0.20853137,109650.0,109640.0,0.53153584]
[1748333324986,0.20853137,109650.0,109640.0,1.72139699]
[1748333324987,0.21765104,109650.0,109640.0,1.72139699]
[1748333325224,0.20975739,109650.0,109640.0,0.64189659]
[1748333325616,0.20063797,109650.0,109640.0,0.44124]
[1748333326032,0.1915183,109650.0,109640.0,0.44124]
[1748333326193,0.01823868,109650.0,109640.0,1.000208]
[1748333326365,0.21887649,109650.0,109640.0,0.67289626]
[1748333326574,0.21887715,109650.0,109640.0,0.99108783]
[1748333326833,0.22087715,109650.0,109640.0,0.64817584]
[1748333327023,0.20263822,109650.0,109640.0,0.44124]
[1748333327202,0.19351846,109650.0,109640.0,0.44124]
[1748333327562,0.19151846,109650.0,109640.0,0.44224]
[1748333327840,0.19151846,109650.0,109640.0,0.44324]
[1748333329865,0.19151846,109650.0,109640.0,0.62565517]
[1748333330077,0.20691846,109650.0,109640.0,0.44324]
[1748333331935,0.19151846,109650.0,109640.0,0.44324]
[1748333333602,0.20771846,109650.0,109640.0,0.44324]
[1748333334919,0.23825931,109650.0,109640.0,0.002]
[1748333336004,0.23825931,109650.0,109640.0,0.3553566]
[1748333336254,0.25524382,109650.0,109640.0,0.3553566]
[1748333336678,0.52872382,109650.0,109640.0,0.3533566]
[1748333337112,0.52972382,109650.0,109640.0,0.3533566]
[1748333337333,0.22670297,109650.0,109630.0,0.56803769]
[1748333337571,0.02736109,109640.0,109630.0,0.58383777]
[1748333337791,0.03648176,109640.0,109630.0,2.04860237]
[1748333338007,0.04560251,109640.0,109630.0,2.04860237]
[1748333338498,0.04534286,109650.0,109640.0,0.5719561]
[1748333338711,0.03647819,109650.0,109640.0,0.85691035]
[1748333338932,0.21887673,109650.0,109640.0,1.10832636]
[1748333339145,0.02610318,109660.0,109650.0,0.20975755]
[1748333339360,0.03647495,109660.0,109650.0,0.58803349]
[1748333339585,0.03647495,109660.0,109650.0,0.57891432]
[1748333339794,0.03647495,109660.0,109650.0,1.10475732]
[1748333340007,0.03647495,109660.0,109650.0,1.06068832]
[1748333340443,0.03647469,109660.0,109650.0,1.06980783]
[1748333340656,0.04559378,109660.0,109650.0,0.71645123]
[1748333340902,0.04559378,109660.0,109650.0,0.64238346]
[1748333340903,0.20061991,109660.0,109650.0,0.64238346]
[1748333341134,0.20061991,109660.0,109650.0,0.6926209]
[1748333341363,0.20161991,109660.0,109650.0,0.70174066]
[1748333341600,0.001,109660.0,109650.0,0.30867222]
[1748333341835,0.01923759,109660.0,109650.0,0.69566775]
[1748333342051,0.01923759,109660.0,109650.0,0.33319181]
[1748333342052,0.21073792,109660.0,109650.0,0.33319181]
[1748333342264,0.19151846,109650.0,109640.0,0.7092566]
[1748333342482,0.19151846,109650.0,109640.0,0.9004276]
[1748333342706,0.19151846,109650.0,109640.0,0.8187866]
[1748333342920,0.19151846,109650.0,109640.0,0.62799017]
[1748333343149,0.19151846,109650.0,109640.0,0.45469575]
[1748333343375,0.01823859,109650.0,109640.0,0.69587194]
[1748333343597,0.03647786,109650.0,109640.0,0.69687202]
[1748333343812,0.03647786,109650.0,109640.0,0.69787202]
[1748333343991,0.04559778,109650.0,109640.0,0.99120211]
[1748333344252,0.22799632,109650.0,109640.0,0.67325185]
[1748333344456,0.21887715,109650.0,109640.0,0.87650677]
[1748333344679,0.21713822,109650.0,109640.0,0.342]
[1748333344888,0.21713822,109650.0,109640.0,0.457178]
[1748333345101,0.21713822,109650.0,109640.0,0.342]
[1748333345534,0.26432017,109650.0,109640.0,0.342]
[1748333346407,0.24872017,109650.0,109640.0,0.342]
[1748333346617,0.0170411,109650.0,109640.0,1.35871525]
[1748333346828,0.0170411,109650.0,109640.0,1.37501525]
[1748333347035,0.02616027,109650.0,109640.0,1.37501525]
[1748333347245,0.0170411,109650.0,109640.0,1.28909825]
[1748333347452,0.02735869,109650.0,109640.0,0.76376326]
[1748333347682,0.01823893,109650.0,109640.0,0.73904284]
[1748333347906,0.21572701,109670.0,109660.0,0.53150091]
[1748333348118,0.01882064,109670.0,109660.0,1.54706416]
[1748333348293,0.21942159,109670.0,109660.0,1.29469393]
[1748333348435,0.21071879,109670.0,109660.0,1.15548593]
[1748333348643,0.01804708,109670.0,109660.0,1.18010444]
[1748333348880,0.02716459,109670.0,109660.0,1.19530444]
[1748333349077,0.05551803,109670.0,109660.0,0.8774039]
[1748333349278,0.04640002,109670.0,109660.0,1.19535416]
[1748333349481,0.05551803,109670.0,109660.0,1.19535416]
[1748333349688,0.06463612,109670.0,109660.0,1.19535416]
[1748333349863,0.06463612,109670.0,109660.0,0.8774039]
[1748333350068,0.05551803,109670.0,109660.0,1.19535416]
[1748333350305,0.04640002,109670.0,109660.0,1.19535416]
[1748333350505,0.06463612,109670.0,109660.0,0.8774039]
[1748333350711,0.06463612,109670.0,109660.0,1.19535416]
[1748333350906,0.05451803,109670.0,109660.0,1.19535416]
[1748333351116,0.04740002,109670.0,109660.0,0.8774039]
[1748333351319,0.05651803,109670.0,109660.0,1.19635416]
[1748333351551,0.03947087,109670.0,109660.0,1.19635416]
[1748333351796,0.03747087,109670.0,109660.0,1.19635416]
[1748333352007,0.03747087,109670.0,109660.0,0.8784039]
[1748333352357,0.03747087,109670.0,109660.0,1.19635416]
[1748333352764,0.0192351,109670.0,109660.0,1.19635416]
[1748333352966,0.02835286,109670.0,109660.0,1.19635416]
[1748333353178,0.01011751,109670.0,109660.0,1.19635416]
[1748333353384,0.001,109670.0,109660.0,1.19635416]
[1748333353599,0.01011759,109670.0,109660.0,1.19635416]
[1748333354237,0.01923535,109670.0,109660.0,1.19635416]
[1748333354443,0.01923527,109670.0,109660.0,1.46979416]
[1748333354654,0.001,109670.0,109660.0,1.24138946]
[1748333354876,0.01011768,109670.0,109660.0,1.55933972]
[1748333355089,0.01011759,109670.0,109660.0,1.55933972]
[1748333355298,0.01011759,109670.0,109660.0,1.24138946]
[1748333355500,0.001,109670.0,109660.0,1.55933972]
[1748333355703,0.01011759,109670.0,109660.0,1.55933972]
[1748333355922,0.001,109670.0,109660.0,1.55933972]
[1748333357398,0.001,109670.0,109660.0,1.24138946]
[1748333357623,0.01011751,109670.0,109660.0,1.55933972]
[1748333358701,0.001,109670.0,109660.0,1.85583972]
[1748333358926,0.01702564,109680.0,109670.0,0.58251906]
[1748333359206,0.03529758,109690.0,109680.0,0.20969994]
[1748333359418,0.04441376,109690.0,109680.0,0.95508694]